Cogmind - Beta 9.6 @@@ ROGUE MODE // 2020.07.10 @ 06:06:32 Player: GGOBC-006 Result: Destroyed by S-10 Pest with Light Assault Rifle Performance ------------- Evolutions (0) 0 Regions Visited (1) 200 Robots Destroyed (18) 90 Value Destroyed (302) 302 Prototype IDs (0) 0 Alien Tech Used (0) 0 Bonus (0) 0 TOTAL SCORE: 592 Bonus ------- None Cogmind --------- Core Integrity 0/250 Matter 279/300 Energy 73/100 System Corruption 0% Temperature Cool (0) Movement Rolling (80) Location -10/Materials Parts ------- > --- POWER (1) -------- (None) > --- PROPULSION (2) --- Wheel > --- UTILITY (2) ------ Improved Terrain Scanner Seismic Analyzer > --- WEAPON (2) ------- Light Assault Rifle > --- INVENTORY (4) ---- Light Ion Engine Compact Wheel Peak State ------------ > --- POWER ------------ Ion Engine > --- PROPULSION ------- Wheel Wheel > --- UTILITY ---------- Improved Terrain Scanner Seismic Analyzer > --- WEAPON ----------- Particle Gun Light Assault Rifle > --- INVENTORY -------- Light Ion Engine Compact Wheel EM Pulse Gun Light Assault Rifle [Rating: 9] Favorites ----------- Power Ion Engine Engine Ion Engine Propulsion Wheel Wheel Wheel Utility Seismic Analyzer Device Improved Terrain Scanner Processor Seismic Analyzer Weapon Light Assault Rifle Energy Gun EM Pulse Gun Ballistic Gun Light Assault Rifle Build | -11 -10 ------- Run | Scr Mat Slots Evolved . | . . Power . | . . Propulsion . | . . Utility . | . . Weapon . | . . Parts Attached 11 | 8 3 Power 1 | 1 . Engine 1 | 1 . Core . | . . Reactor . | . . Propulsion 3 | 3 . Treads . | . . Leg . | . . Wheel 3 | 3 . Hover . | . . Flight . | . . Utility 2 | 2 . Device 1 | 1 . Storage . | . . Processor 1 | 1 . Hackware . | . . Protection . | . . Artifact . | . . Weapon 5 | 2 3 Energy Gun 3 | 1 2 Energy Cannon . | . . Ballistic Gun 2 | 1 1 Ballistic Cannon . | . . Launcher . | . . Special Weapon . | . . Impact Weapon . | . . Slashing Weapon . | . . Piercing Weapon . | . . Special Melee Weapon . | . . Unidentified Prototypes . | . . Parts Lost 5 | . 5 Power 1 | . 1 Propulsion 1 | . 1 Utility . | . . Weapon 3 | . 3 Highest Loss Streak 5 | . 5 Average Slot Usage (%) 98 | . 98 Engine 13 | . 13 Wheel 27 | . 27 Device 14 | . 14 Processor 14 | . 14 Energy Gun 13 | . 13 Ballistic Gun 14 | . 14 Naked Turns . | . . Heaviest Build 10 | 9 10 Greatest Support 26 | 26 20 Greatest Overweight (x) . | . . Average Overweight (x) . | . . Largest Inventory Capacity 4 | 4 4 Average Capacity 4 | 4 4 Most Carried 4 | 3 4 Average Carried 2 | 1 3 Final Capacity 4 | 4 4 Final Carried 3 | 3 2 Class Distribution -------------------- 79% | Mutant 20% | Scavenger-Mutant Dominant Class ---------------- Mutant | -10/Materials Resources | -11 -10 ----------- Run | Scr Mat Matter Collected 348 | 311 37 Remotely . | . . Salvage Created 535 | 224 311 Parts 42 | 18 24 Haulers Intercepted . | . . Recyclers Shooed . | . . Parts Field Recycled . | . . Retrieved Matter . | . . Parts Self-Destructed . | . . Prevented . | . . Kills | -11 -10 ------- Run | Scr Mat Combat Hostiles Destroyed 9 | . 9 Guns 9 | . 9 Classes Destroyed 6 | 3 3 Worker 2 | 2 . Tunneler 5 | 5 . Recycler 1 | 1 . Operator 1 | . 1 Swarmer 4 | . 4 Grunt 5 | . 5 Best Kill Streak 4 | 3 4 Combat Bots Only 4 | . 4 Max Kills in Single Turn 2 | 2 1 Gunslinging . | . . Exploded . | . . Melee . | . . Uniques/NPCs Destroyed . | . . Combat | -11 -10 -------- Run | Scr Mat Damage Taken 636 | 30 606 Core 253 | 30 223 Absorbed by Shields . | . . Core Remaining (%) 88 | 88 . Volleys Fired 74 | 31 43 Largest 2 | 2 2 Hottest 85 | 60 85 Shots Fired 136 | 62 74 Gun 136 | 62 74 Cannon . | . . Launcher . | . . Special . | . . Kinetic 74 | 31 43 Thermal 18 | . 18 Explosive . | . . Electromagnetic 44 | 31 13 Robot Hit Streak 8 | 8 8 Robot Miss Streak 6 | 5 6 Penetration Max . | . . Secondary Targets 1 | . 1 Max Gunslinging Chain 1 | . 1 Shots Hit Robots 67 | 25 42 Core Hits 32 | 13 19 Critical Hits . | . . Critical Kills . | . . Critical Parts Destroyed . | . . Melee Attacks . | . . Impact . | . . Slashing . | . . Piercing . | . . Sneak Attacks . | . . Combat Hostiles . | . . Follow-up Attacks . | . . Damage Inflicted 763 | 325 438 Guns 679 | 241 438 Cannons . | . . Explosions 84 | 84 . Melee . | . . Ramming . | . . Kinetic 322 | 98 224 Thermal 210 | 84 126 Explosive . | . . Electromagnetic 231 | 143 88 Impact . | . . Slashing . | . . Piercing . | . . Highest Corruption . | . . Average Corruption . | . . Corruption Purged . | . . Overload Shots . | . . Overflow Damage . | . . Projectiles . | . . Explosions . | . . Melee . | . . Knockbacks . | . . Impact . | . . Kinetic . | . . Secondary . | . . Self-Inflicted Damage 30 | 30 . Shots 1 | 1 . Rammed . | . . Targets Rammed . | . . Kicked . | . . Crushed . | . . Highest Temperature 262 | 80 262 Average Temperature 60 | 32 80 Received Heat Transfer 105 | . 105 Siege Activations . | . . Robots Corrupted . | . . Combat Hostiles . | . . Parts Fried 2 | 2 . Impact Corruptions . | . . Robots Melted . | . . Combat Hostiles . | . . Parts Melted . | . . Heat Transferred 346 | 50 296 Parts Sabotaged . | . . Parts Stolen . | . . Parts Stripped . | . . Power Chain Reactions 1 | 1 . Missiles Intercepted . | . . Alert | -11 -10 ------- Run | Scr Mat Peak Influence 255 | 40 255 Average Influence 49 | 19 58 Maximum Alert Level 1 | . 1 Low Security (%) 96 | 100 95 Level 1 3 | . 4 Level 2 . | . . Level 3 . | . . Level 4 . | . . Level 5 . | . . High Security . | . . Max Security . | . . Squads Dispatched 2 | . 2 Investigation . | . . Extermination . | . . Reinforcement 2 | . 2 Assault . | . . Garrison . | . . Intercept . | . . Construction Impeded . | . . Haulers Reinforced . | . . Stealth | -11 -10 --------- Run | Scr Mat Distress Signals 1 | . 1 Communications Jammed . | . . Distress Signals . | . . Times Spotted 19 | . 19 Peak Tracking Total 8 | . 8 Tactical Retreats . | . . Traps | -11 -10 ------- Run | Scr Mat Traps Triggered . | . . Indirectly . | . . Trap Hack Attempts . | . . Triggered . | . . Disarmed . | . . Reprogrammed . | . . Reused . | . . Traps Extracted . | . . Installed . | . . Triggered . | . . Machines | -11 -10 ---------- Run | Scr Mat Machines Disabled 2 | . 2 Max in Single Turn 1 | . 1 Machines Sabotaged . | . . Garrisons Compromised . | . . Overloaded Fab Kills . | . . Fab Network Shutdowns . | . . Hacking | -11 -10 --------- Run | Scr Mat Machines Accessed 2 | . 2 Terminals 2 | . 2 Fabricators . | . . Repair Stations . | . . Recycling Units . | . . Scanalyzers . | . . Garrison Access . | . . Total Hacks 5 | . 5 Successful 3 | . 3 Failed 2 | . 2 Catastrophic . | . . Database Lockouts . | . . Manual 4 | . 4 Terminals 5 | . 5 Fabricators . | . . Repair Stations . | . . Recycling Units . | . . Scanalyzers . | . . Garrison Access . | . . Terminal Hacks 1 | . 1 Recall Investigation 1 | . 1 Fabricator Hacks . | . . Repair Station Hacks . | . . Recycling Unit Hacks . | . . Scanalyzer . | . . Garrison Access Hacks . | . . Unauthorized Hacks 2 | . 2 Terminals 2 | . 2 Track 1 | . 1 Botnet 1 | . 1 Fabricators . | . . Repair Stations . | . . Recycling Units . | . . Scanalyzers . | . . Garrison Access . | . . Data Cores Recovered . | . . Used . | . . Hacking Detections 2 | . 2 Full Trace Events . | . . Feedback Events . | . . Feedback Blocked . | . . Robot Schematics Acquired . | . . Robots Built . | . . Matter . | . . Time . | . . Total Robot Build Rating . | . . Part Schematics Acquired . | . . Parts Built . | . . Matter . | . . Time . | . . Total Part Build Rating . | . . Parts Repaired . | . . Time . | . . Parts Recycled . | . . Recycled Matter . | . . Retrieved Matter . | . . Retrieved Components . | . . Parts Scanalyzed . | . . Part Schematics Acquired . | . . Parts Damaged . | . . Bothacking | -11 -10 ------------ Run | Scr Mat Used RIF Installer . | . . Robots Hacked . | . . Non-combat . | . . Combat . | . . Robot Hacks Applied . | . . Relay Couplers Released . | . . Robots Rewired . | . . Allies Hacked . | . . Hacks Repelled . | . . Allies | -11 -10 -------- Run | Scr Mat Total Allies . | . . Largest Group . | . . Highest-Rated Group . | . . Highest-Rated Ally . | . . Total Orders . | . . Ally Attacks . | . . Total Damage . | . . Kills . | . . Allies Corrupted . | . . Allies Melted . | . . Intel | -11 -10 ------- Run | Scr Mat Robot Analysis Total . | . . Derelict Logs Recovered . | . . Drone Launches . | . . Drone Recoveries . | . . Exploration | -11 -10 ------------- Run | Scr Mat Turns Passed 831 | 180 651 Spaces Moved 273 | 90 183 Core 1 | 1 . Treads . | . . Legs . | . . Wheels 272 | 89 183 Hover . | . . Flight . | . . Fastest Speed 50 | 50 80 Average Speed 81 | 84 80 Slowest Speed 100 | 100 80 Overloaded Moves . | . . Propulsion Burnouts . | . . Robots Hopped . | . . Cave-ins Triggered . | . . Exploration Rate (%) 16 | 4 28 Regions Visited 1 Branch Regions . Pre-discovered Areas . | . . Known Exits Taken . | . . Unknown Exits Taken 1 | 1 . Scrap Searched . | . . Spaces Dug . | . . Terrain Destroyed . | . . Melee . | . . Projectile . | . . AOE . | . . Actions | -11 -10 --------- Run | Scr Mat Total 756 | 134 622 Wait 395 | 2 393 Move 272 | 89 183 Hop . | . . Pick Up 3 | 3 . Fast Attach 7 | 7 . Attach 2 | . 2 Detach . | . . Swap 2 | 1 1 Drop 1 | 1 . Fire 74 | 31 43 Melee . | . . Ram . | . . Kick . | . . Crush . | . . Escape Stasis . | . . Rewire . | . . Trap . | . . Miscellaneous . | . . Route ------- -11/Scrapyard -10/Materials (discovered 1 exit: [*Mat]) History --------- Turn | Location | Event 10 | -11/Scrapyard | Discovered new exit (range 16) 181 | -11/Scrapyard | Entered Materials 317 | -10/Materials | Build established: Mutant 795 | -10/Materials | Discovered new exit (range 14) 808 | -10/Materials | Core integrity fell below 50% 824 | -10/Materials | Core integrity fell below 20% 832 | -10/Materials | Destroyed by S-10 Pest with Light Assault Rifle Last Messages --------------- Acquired 1 matter. G-34 Mercenary destroyed. Acquired 3 matter. U-05 Engineer lays Concrete. Acquired 2 matter. T-07 Excavator is excavating. EXIT=FOUND Hadron Collector disabled. T-07 Excavator is excavating. Particle Gun destroyed. T-07 Excavator is excavating. Lgt. Assault Rifle destroyed. Ion Engine destroyed. Wheel destroyed. U-05 Engineer lays Concrete. S-10 Pest destroyed. Switching to secondary target: S-10 Pest. EM Pulse Gun destroyed. S-10 Pest destroyed. K-01 Serf collects debris. Map ----- +----------------------------------------------------+ | ???????????? ?? ?#?#?# ## # """ +?????????? | | ????????#???????##?### T# # #?????????? | | ???????????#??######## ## ########???????????? | | ????????#??##????##?## ## ###?? ?????????????? | | ?????????####?#?##?### ## #????????? ???????? | | ?????#?############### # ##?# ?????????????? | | ??????? + # # #??#???"??????????? | | ????????## # # ##?#? ????????????? | | ?????????# # # #??#? ?"??????????? | | ???????#?# # # #??#? """?????????? | | ??????##?# +/ ## ##??#????"?????????? | | ????????## ! #%= ## ###????#?#?????????? | | ????????## # ## #####??????????????? | | ???????#?############# ## #######????????????? | | ??????#?# ?? ? ? ???#=% # ##?#T###???????????? | | ????????#?? ? ? ?# = # ? ? ? ??????????? | | ????????? ???"" ?"? + = # ? ? ? ??????????? | | ????????????"""?""" # %=* # ?? ? ???????????? | | ?????????? ?""" """ # % # #?#+???????????????? | | ?????????? ? ### ### ## ? ????????????? | | ?????????? ? ? ??#%#?# ##?? ? ? ?????????? | | ??????????+#######??#?#[### ##?? ??"? ????????? | | ?????????? ###??#######+### #??? ????? ????????? | | ?????????? ?#?### # #?? ???????????????? | | ?????????????? ## """ """k# #??????????????????? | | ????????????????# """ """@# ##? ???????#???????? | | ????????????? ??# """ ""==s% #??#???????????????? | | ????????????????# """ ""s=#u ##???#?#?#?????????? | | ?????????? ?????? [%# #????#?????????????? | | ????????????????# [# #?????#?#??????????? | | ?????????? ???#?# + #????##??#?????????? | | ????????????#???########### ??##?#???????????? | | ?????????????????##???????# # #?#????#?????????? | | ???????????????????????? # #####??????????????? | | ????????????? ?#???""?????# #?#????????????????? | | ????????????? ### ?????""?? #??#???#???????????? | | ????????????????#?????????? #?????#????????????? | | ???????????????#??????????? #??????????????????? | | ????????????????#???? ? ??? < ###????????????????? | | ?????????????????? ??????? #??????????????????? | | ???????????????????????? ?####???????????????????? | | ?????????????????????????????????????????????????? | | ?????????????????????????????????????????????????? | | ?????????????????????????????????????????????????? | | ?????????????????????????????????????????????????? | | ?????????????????????????????????????????????????? | | ?????????????????????????????????????????????????? | | ?????????????????????????????????????????????????? | | | | | +----------------------------------------------------+ Best States ------------- Heat Dissipation 25 Energy Generation 10 Energy Capacity 250 Matter Stores 300 Matter Capacity 300 Sight Range 16 Terrain Scan Range 16 Terrain Scan Density 60 Evasion (%) 44 Item Schematics ----------------- None Robot Schematics ------------------ None Fabricated ------------ Nothing Alien Tech Used ----------------- None Achievements -------------- None Challenges ------------ None Game ------ Seed CloakHellfireProtection Manual? 0 Play Time 00:10:59 Cumulative 25.1 hours Start 2020.07.10 @ 05:37:55 End 2020.07.10 @ 06:06:32 Sessions 1 Manual Loads 0 Difficulty Rogue Special Mode None Game No. 18 Rogue 18 Adventurer 0 Explorer 0 Win Type - Total 0 Types 0/0/0/0/0/0/0 Lore% 40 Gallery% 33 Achievement% 30 Wizard Run 0 Options --------- ASCII 0 Keyboard 0 Movement Numpad Keybinds 0 Fullscreen 2 Font 18/TerminusBold Map View 76x50 Tactical HUD 0 Map Filters NONE Filters NONE Steam 1 RUN: 77ad6a90-8929-4ef0-95f4-1ad0fbfdf15c